{"text_format":"1","workbook":"xlsx","n_sheets":1,"sheets":["01 août"],"not_rendered":{"charts":0,"images":0,"macros":1,"external_links":0,"defined_names":16,"comments":0,"pivot_tables":0},"unopened":[],"bounds":{"document_bytes":16777216,"sheet_cells":100000,"rows_first":2000,"rows_last":500,"rows_between":2000,"halvings":0,"cell_chars":16384,"cell_head_chars":4096},"cells_cut":0,"cells_raw":0,"read":"whole","date_system":"1900"}

{"sheet":"01 août","index":0,"n_rows":33,"n_cols":38,"rows_kept":33,"cut":false,"hidden":false,"merged":[[0,21,1,28],[2,21,3,28],[3,0,3,18],[2,6,2,18],[0,0,2,2],[0,3,0,5],[0,6,0,18],[1,3,1,5],[1,6,1,18],[2,3,2,5],[0,19,3,20],[4,0,5,0],[4,1,5,2],[4,3,4,4],[4,5,4,6],[4,22,4,28],[5,22,6,26],[5,27,5,28],[6,1,6,2],[7,1,7,2],[7,23,7,26],[8,1,8,2],[8,23,8,26],[7,22,9,22],[9,1,9,2],[9,23,9,26],[10,1,10,2],[10,23,10,26],[11,1,11,2],[11,23,11,26],[12,1,12,2],[12,23,12,26],[10,22,13,22],[13,1,13,2],[13,23,13,26],[14,1,14,2],[14,23,14,26],[15,1,15,2],[15,23,15,26],[14,22,16,22],[16,1,16,2],[16,23,16,26],[17,1,17,2],[17,23,17,26],[18,1,18,2],[18,23,18,26],[17,22,20,22],[19,1,19,2],[19,23,19,26],[20,1,20,2],[20,23,20,26],[21,1,21,2],[21,23,21,26],[21,22,23,22],[22,1,22,2],[22,23,22,26],[23,1,23,2],[23,23,23,26],[27,1,27,2],[27,23,27,26],[26,22,27,22],[24,1,24,2],[24,23,24,26],[24,22,25,22],[25,1,25,2],[25,23,25,26],[26,1,26,2],[26,23,26,26],[33,1,33,2],[28,1,28,2],[28,23,28,26],[29,1,29,2],[29,23,29,26],[30,1,30,2],[30,23,30,26],[31,0,31,2],[31,3,31,6],[31,22,32,28],[32,0,32,2],[32,3,32,6],[28,22,30,22]]}
[null,null,null,"CONTREMAITRE :",null,null,null,null,null,null,null,null,null,null,null,null,null,null,null,"JOUR :",null,{"$f":"PROPER(TEXT(V3,\"jjjj\"))","v":"Mercredi"}]
[null,null,null,"NOM DU PROJET :"]
[null,null,null,"NO. DU PROJET :",null,null,null,null,null,null,null,null,null,null,null,null,null,null,null,null,null,"2018-08-01"]
[]
[null,"NOM DE L'EMPLOYÉ",null,"HEURE A.M.",null,"HEURE P.M.",null,"O",null,null,null,null,null,null,null,null,null,null,null,null,null,"TOTAL","Équipements Utilisés"]
[null,null,null,"DE","À","DE","À",null,null,null,null,null,null,null,null,null,null,null,null,null,null,null,"Équipements  ",null,null,null,null,"Compteur "]
[1,null,null,7,12,12.5,15.5,null,null,null,null,null,null,null,null,null,null,null,null,null,null,{"$f":"SUM(H7:U7)","v":0},null,null,null,null,null,"Début","Fin"]
[2,null,null,7,12,12.5,15.5,null,null,null,null,null,null,null,null,null,null,null,null,null,null,0,"CAMIONS"]
[3,null,null,7,12,12.5,15.5,null,null,null,null,null,null,null,null,null,null,null,null,null,null,0]
[4,null,null,7,12,12.5,15.5,null,null,null,null,null,null,null,null,null,null,null,null,null,null,0]
[5,null,null,7,12,12.5,15.5,null,null,null,null,null,null,null,null,null,null,null,null,null,null,0,"BOBCATS"]
[6,null,null,7,12,12.5,15.5,null,null," ",null,null,null,null,null,null,null,null,null,null,null,0]
[7,null,null,7,12,12.5,15.5,null,null,null,null,null,null,null,null,null,null,null,null,null,null,0,null,null,null,null,null,null,null,null,null,null,null,null,null," "]
[8,null,null,7,12,12.5,15.5,null,null,null,null,null,null,null,null,null,null,null,null,null,null,0]
[9,null,null,7,12,12.5,15.5,null,null,null,null,null,null,null,null,null,null,null,null,null,null,0,"PELLES",null,null,null,null,null," ",null,null,null," "]
[10,null,null,7,12,12.5,15.5,null,null,null,null,null,null,null,null,null,null,null,null,null,null,0,null,null,null,null,null,null,null,null,null,null,null," "]
[11,null,null,null,null,null,null,null,null,null,null,null,null,null,null,null,null,null,null,null,null,0,null,null,null,null,null,null,null,null,null,null," ",null,null,null,null," "]
[12,null,null,null,null,null,null,null,null,null,null,null,null,null,null,null,null,null,null,null,null,0,"TRAMACS",null,null,null,null,null,null,null,null,null,null," "]
[13,null,null,null,null,null,null,null,null,null,null,null,null,null,null,null,null,null,null,null,null,0,null,null,null,null,null,null,null,null,null,null," "]
[14,null,null,null,null,null,null,null,null,null,null,null,null,null,null,null,null,null,null,null,null,0]
[15,null,null,null,null,null,null,null,null,null,null,null,null,null,null,null,null,null,null,null,null,0]
[16,null,null,null,null,null,null,null,null,null,null,null,null,null,null,null,null,null,null,null,null,0,"HYDRO",null,null,null,null,null,null,null,null,null," "," "]
[17,null,null,null,null,null,null,null,null,null,null,null,null,null,null,null,null,null,null,null,null,0,null,null,null,null,null,null,null,null,null,null,null,null," "]
[18,null,null,null,null,null,null,null,null,null,null,null,null,null,null,null,null,null,null,null,null,0,null,null,null,null,null,null,null,null,null,null,null,null," "]
[19,null,null,null,null,null,null,null,null,null,null,null,null,null,null,null,null,null,null,null,null,0,"LIFT"]
[20,null,null,null,null,null,null,null,null,null,null,null,null,null,null,null,null,null,null,null,null,0]
[21,null,null,null,null,null,null,null,null,null,null,null,null,null,null,null,null,null,null,null,null,0,"COMP"]
[22,null,null,null,null,null,null,null,null,null,null,null,null,null,null,null,null,null,null,null,null,0]
[23,null,null,null,null,null,null,null,null,null,null,null,null,null,null,null,null,null,null,null,null,0,"ACCESS."]
[24,null,null,null,null,null,null,null,null,null,null,null,null,null,null,null,null,null,null,null,null,0]
[25,null,null,null,null,null,null,null,null,null,null,null,null,null,null,null,null,null,null,null,null,0]
["CHARGÉ DE PROJET",null,null,"CODES",null,null,null,{"$f":"H5","v":"O"},{"$f":"I5","v":0},0,0,0,0,0,0,0,{"$f":"$Q$5","v":0},{"$f":"$R$5","v":0},{"$f":"$S$5","v":0},{"$f":"$T$5","v":0},{"$f":"$U$5","v":0}]
[null,null,null,"ITEM AU BORDEREAU",null,null,null,{"$f":"SUM(H7:H31)","v":0},{"$f":"SUM(I7:I31)","v":0},0,0,0,0,0,0,0,0,0,0,0,0,0]